[Event "Satka Autumn 2018"]
[Site "Satka"]
[Date "2018.09.11"]
[Round "1"]
[White "Nosacheva, Mariya"]
[Black "Mysova, Svetlana"]
[Result "1-0"]
[ECO "B01"]
[WhiteElo "2073"]
[BlackElo "1017"]
[Annotator "NA"]
[PlyCount "23"]
[EventDate "2018.09.11"]
[EventType "swiss"]
[EventCountry "RUS"]
[SourceTitle "playchess.com"]
[Source "ChessBase"]
[SourceQuality "1"]
[TimeControl "40/5400+30:1800+30"]

{[%evp 11,23,45,58,33,53,32767,32767,32767,32767,114,713,750,1183,827]} 1. e4 {[%emt 0:00:00]} d5 {[%emt 0:00:00]} 2. exd5 {[%emt 0:00:00]} Qxd5 {[%emt 0:00:05]} 3. Nc3 {[%emt 0:00:00]} Qa5 {[%emt 0:00:21]} 4. Nf3 {[%emt 0:00:31]} Nf6 {[%emt 0:00:56]} 5. d4 {[%emt 0:00:31]} c6 {[%emt 0:00:30]} 6. Ne5 {[%emt 0:13:33] LiveBook: 241 Partien} e6 {[%emt 0:01:43]} 7. Nc4 {[%emt 0:08:03]} Qd8 {[%emt 0:00:49]} 8. Bf4 {[%emt 0:02:36]} b5 {[%emt 0:01:23]} 9. Ne5 {[%emt 0:00:55]} Bd6 {[%emt 0:00:48]} 10. Qf3 {[%emt 0:03:20]} Nbd7 $2 {[%emt 0:01:18]} (10... O-O $16) 11. Nxc6 {[%emt 0:00:31]} Qc7 {[%emt 0:01:44]} 12. Nxb5 $18 {[%emt 0:00:06]} 1-0

[Event "Satka Autumn 2018"]
[Site "Satka"]
[Date "2018.09.11"]
[Round "1"]
[White "Kilina, Elizaveta"]
[Black "Semenova, Elena"]
[Result "0-1"]
[ECO "B38"]
[WhiteElo "1226"]
[BlackElo "2219"]
[Annotator "ChessBase"]
[PlyCount "58"]
[EventDate "2018.09.11"]
[EventType "swiss"]
[EventCountry "RUS"]
[SourceTitle "playchess.com"]
[Source "ChessBase"]
[SourceQuality "1"]
[TimeControl "40/5400+30:1800+30"]

1. e4 {[%emt 0:00:00]} c5 {[%emt 0:00:00]} 2. Nf3 {[%emt 0:00:00]} g6 {[%emt 0:00:37]} 3. d4 {[%emt 0:00:50]} cxd4 {[%emt 0:00:19]} 4. Nxd4 {[%emt 0:00:08]} Bg7 {[%emt 0:00:20]} 5. c4 {[%emt 0:01:42]} Nc6 {[%emt 0:00:52]} 6. Be3 {[%emt 0:01:59]} Nf6 {[%emt 0:00:40]} 7. Nc3 {[%emt 0:00:25]} Qa5 {[%emt 0:05:54]} 8. f3 {[%emt 0:10:24]} d6 {[%emt 0:04:05]} 9. Be2 {[%emt 0:02:43]} O-O {[%emt 0:11:22]} 10. O-O {[%emt 0:00:35]} Bd7 {[%emt 0:03:15]} 11. Nb3 {[%emt 0:10:05]} Qd8 {[%emt 0:05:10]} 12. Qd2 {[%emt 0:13:13]} Be6 {[%emt 0:14:21]} 13. Nd5 {[%emt 0:19:26]} Nd7 {[%emt 0:06:40]} 14. Bh6 {[%emt 0:06:49]} Bxh6 {[%emt 0:04:04]} 15. Qxh6 {[%emt 0:00:07]} a5 {[%emt 0:00:03]} 16. Qd2 {[%emt 0:10:14]} a4 {[%emt 0:06:31]} 17. Nc1 {[%emt 0:07:36]} Qa5 {[%emt 0:05:42]} 18. Qxa5 {[%emt 0:03:08]} Rxa5 {[%emt 0:00:02]} 19. b4 {[%emt 0:04:10]} axb3 {[%emt 0:02:05]} 20. Nxb3 {[%emt 0:00:09]} Ra3 {[%emt 0:00:17]} 21. Nc7 {[%emt 0:00:54]} Nc5 {[%emt 0:03:42]} 22. Nb5 {[%emt 0:02:50]} Nxb3 {[%emt 0:01:08]} 23. Nxa3 {[%emt 0:00:37]} Nxa1 {[%emt 0:00:04]} 24. Rxa1 {[%emt 0:00:06]} Nd4 {[%emt 0:00:19]} 25. Bd3 {[%emt 0:00:51]} Ra8 {[%emt 0:00:28]} 26. Nc2 {[%emt 0:03:16]} Nxc2 {[%emt 0:00:12]} 27. Bxc2 {[%emt 0:00:02]} Bxc4 {[%emt 0:00:08]} 28. a4 {[%emt 0:00:12]} Rc8 {[%emt 0:03:23]} 29. Kf2 {[%emt 0:01:00]} Ba6 {[%emt 0:00:11]} 0-1

[Event "Satka Autumn 2018"]
[Site "Satka"]
[Date "2018.09.11"]
[Round "1"]
[White "Shafikova, Irina"]
[Black "Mukhina, Jana"]
[Result "0-1"]
[ECO "C48"]
[WhiteElo "1008"]
[BlackElo "2072"]
[Annotator "NA RC"]
[PlyCount "30"]
[EventDate "2018.09.11"]
[EventType "swiss"]
[EventCountry "RUS"]
[SourceTitle "playchess.com"]
[Source "ChessBase"]
[SourceQuality "1"]
[TimeControl "40/5400+30:1800+30"]

{[%evp 9,25,-10,8,-50,-45,-136,-97,-106,-132,-139,-131,-139,-137,-138,-135,-145,-151,-170]} 1. e4 {[%emt 0:00:00]} e5 {[%emt 0:00:00]} 2. Nf3 {[%emt 0:00:00]} Nc6 {[%emt 0:00:00]} 3. Nc3 {[%emt 0:00:35]} Nf6 {[%emt 0:00:00]} 4. Bb5 {[%emt 0:00:34]} Nd4 {[%emt 0:00:00]} 5. d3 {[%emt 0:09:09]} Bb4 {[%emt 0:06:18]} 6. Bc4 {[%emt 0:08:14]} d5 {[%emt 0:08:24]} 7. Bxd5 {[%emt 0:07:25]} ({Better is} 7. exd5 $15 b5 8. Bb3 (8. Nxd4 exd4 9. Bxb5+ Kf8 $17)) 7... Nxd5 {[%emt 0:00:21]} 8. exd5 {[%emt 0:00:53] [#]} Bg4 $1 {[%emt 0:03:45]} 9. Bd2 {[%emt 0:09:52]} Bxc3 {[%emt 0:00:29]} 10. bxc3 {[%emt 0:02:19]} Nxf3+ {[%emt 0:00:07]} 11. gxf3 {[%emt 0:00:15]} Qxd5 {[%emt 0:00:10]} 12. Rg1 {[%emt 0:03:10]} Bxf3 {[%emt 0:00:44]} 13. Qb1 $19 {[%emt 0:03:27]} Bh5 {[%emt 0:01:53]} 14. Rg3 {[%emt 0:01:33]} Qh1+ {[%emt 0:00:07]} 15. Rg1 {[%emt 0:00:19]} Qxg1# {[%emt 0:00:06]} 0-1

[Event "Satka Autumn 2018"]
[Site "Satka"]
[Date "2018.09.13"]
[Round "3"]
[White "Charochkina, Daria"]
[Black "Sosnina, Nadezhda"]
[Result "1-0"]
[ECO "A55"]
[WhiteElo "2336"]
[BlackElo "1659"]
[Annotator "NA"]
[PlyCount "73"]
[EventDate "2018.09.11"]
[EventType "swiss"]
[EventCountry "RUS"]
[SourceTitle "playchess.com"]
[Source "ChessBase"]
[SourceQuality "1"]
[TimeControl "40/5400+30:1800+30"]

{[%evp 8,62,63,55,57,22,33,47,33,15,40,35,47,27,20,10,29,6,42,10,57,-33,89,83,170,102,178,124,120,131,164,157,192,214,219,187,254,258,247,266,391,385,415,387,366,233,316,316,316,320,372,409,435,505,466,508,534]} 1. d4 {[%emt 0:00:00]} Nf6 {[%emt 0:00:00]} 2. c4 {[%emt 0:00:00]} d6 {[%emt 0:00:00]} 3. Nc3 {[%emt 0:00:00]} e5 {[%emt 0:00:00]} 4. Nf3 {[%emt 0:00:00]} Nbd7 {[%emt 0:00:00]} 5. e4 {[%emt 0:00:21]} g6 {[%emt 0:00:10]} 6. g3 {[%emt 0:00:12]} Bg7 {[%emt 0:00:06]} 7. Bg2 {[%emt 0:00:04]} O-O {[%emt 0:00:10]} 8. O-O {[%emt 0:00:06]} exd4 {[%emt 0:00:12]} 9. Nxd4 {[%emt 0:00:07]} ({Of course not} 9. Qxd4 Re8 $15) 9... Re8 {[%emt 0:00:07]} 10. h3 {[%emt 0:00:57]} Nc5 {[%emt 0:00:20]} 11. Re1 {[%emt 0:00:11]} a5 {[%emt 0:00:08]} 12. Rb1 {[%emt 0:02:21]} c6 {[%emt 0:09:40]} 13. b3 {[%emt 0:02:08]} Nfd7 {[%emt 0:17:45] LiveBook: 89 Games} 14. f4 {[%emt 0:12:27] [#] E69: King's Indian: Fianchetto: 6...Nbd7 7 0-0 e5 8 e4 c6 9 h3} (14. Be3 $14 Ne5 15. Re2 Qe7 16. Qc2 a4 17. f4 axb3 18. axb3 Ned7 19. Bf2 h5 20. b4 Ne6 21. Nxe6 Qxe6 22. Na4 Qf6 23. Be3 {½-½ (43) Markus,R (2630)-Toth,E (2449) Hungary 2018}) 14... Qb6 {[%emt 0:07:18]} (14... f5 $1 $11 {[%mdl 512]}) 15. Be3 {[%emt 0:04:09]} Qb4 $146 {[%emt 0:00:18]} (15... h6 $16) ({Predecessor:} 15... h5 16. a3 Qa6 17. Ncb5 cxb5 18. Nxb5 Ne6 19. f5 Ndf8 20. fxe6 Nxe6 21. Qxd6 {0-1 (50) Gruen,G (2375)-Schaefer,M (2435) Germany 1992}) 16. Qd2 {[%emt 0:04:28]} Nf6 {[%emt 0:00:58]} (16... Bxd4 $16 {ist wohl besser.} 17. Qxd4 (17. Bxd4 a4 $14) 17... a4) 17. Nc2 {[%emt 0:02:18]} Nfxe4 {[%emt 0:04:40]} 18. Nxe4 {[%emt 0:00:13]} Nxe4 {[%emt 0:00:18]} 19. Bxe4 {[%emt 0:01:10]} ({Worse is} 19. Nxb4 Nxd2 20. Bxd2 Bf5 $11) 19... Qxd2 {[%emt 0:08:43]} 20. Bxd2 {[%emt 0:00:09]} Bxh3 {[%emt 0:00:03]} 21. Bd3 {[%emt 0:08:05]} Bg4 {[%emt 0:05:18]} 22. Rxe8+ {[%emt 0:08:02]} Rxe8 {[%emt 0:04:27]} 23. Bxa5 {[%emt 0:00:13]} Be2 {[%emt 0:01:09]} (23... Ra8 {keeps fighting.}) 24. Re1 {[%emt 0:00:48]} Ra8 {[%emt 0:00:00]} 25. Rxe2 {[%emt 0:00:10]} Rxa5 26. a4 {[%emt 0:00:54]} (26. Re8+ $142 Bf8 27. a3) 26... Ra8 {[%emt 0:00:00]} 27. Re7 {[%emt 0:01:33]} Rb8 {[%emt 0:02:36]} 28. Rd7 {[%emt 0:03:18]} Bf8 {[%emt 0:00:07]} 29. Kf2 {[%emt 0:00:17]} Kg7 {[%emt 0:00:25]} 30. Nd4 {[%emt 0:00:32]} Kf6 {[%emt 0:00:19]} 31. g4 {[%emt 0:00:34]} h6 $18 {[%emt 0:01:10]} 32. g5+ {[%emt 0:09:55]} hxg5 {[%emt 0:00:26]} 33. fxg5+ {[%emt 0:00:05]} Ke5 {[%emt 0:00:21]} 34. Ke3 {[%emt 0:00:03]} c5 {[%emt 0:00:32]} 35. Nf3+ {[%emt 0:02:21]} Ke6 {[%emt 0:00:02]} 36. Rc7 {[%emt 0:00:04]} Be7 {[%emt 0:00:59]} 37. Be4 {[%emt 0:00:07] Kd5} 1-0

[Event "Satka Autumn 2018"]
[Site "Satka"]
[Date "2018.09.13"]
[Round "3"]
[White "Schepetkova, Margarita"]
[Black "Trapeznikova, Darya"]
[Result "1-0"]
[ECO "D30"]
[WhiteElo "2238"]
[BlackElo "2107"]
[Annotator "NA"]
[PlyCount "187"]
[EventDate "2018.09.11"]
[EventType "swiss"]
[EventCountry "RUS"]
[SourceTitle "playchess.com"]
[Source "ChessBase"]
[SourceQuality "1"]
[TimeControl "40/5400+30:1800+30"]

1. d4 {[%emt 0:00:00]} d5 {[%emt 0:00:00]} 2. c4 {[%emt 0:00:00]} e6 {[%emt 0:00:00]} 3. g3 {[%emt 0:00:00]} c6 {[%emt 0:00:16]} 4. Bg2 {[%emt 0:00:24]} dxc4 {[%emt 0:02:33]} 5. Nf3 {[%emt 0:00:09]} b5 {[%emt 0:00:31] LiveBook: 232 Games} 6. O-O {[%emt 0:05:16]} Bb7 {[%emt 0:01:24]} 7. Ne5 {[%emt 0:02:05] D30: Damengambit (ohne Sc3)} Nf6 {[%emt 0:02:48]} 8. a4 {[%emt 0:00:44]} Qc8 {[%emt 0:03:29]} 9. b3 {[%emt 0:02:21]} cxb3 {[%emt 0:03:05]} 10. Qxb3 {[%emt 0:00:14]} b4 {[%emt 0:03:37]} 11. Nd3 $146 {[%emt 0:16:07]} ({Vorgänger:} 11. Nd2 c5 12. Bb2 Bxg2 13. Kxg2 Qb7+ 14. Qf3 Qxf3+ 15. Ndxf3 Nbd7 16. a5 Nxe5 17. Nxe5 Nd7 18. dxc5 f6 19. Nc6 Nxc5 20. Rfd1 a6 21. Rab1 Nb7 {½-½ (21) Kraai,J (2526)-Khenkin,I (2613) Bad Wiessee 2009}) 11... a5 {[%emt 0:04:48]} 12. Bg5 {[%emt 0:04:09]} Be7 {[%emt 0:03:52]} 13. Nd2 {[%emt 0:00:37]} Nbd7 {[%emt 0:08:37]} 14. Rfc1 {[%emt 0:02:32]} h6 {[%emt 0:05:05]} 15. Bxf6 {[%emt 0:00:08]} Bxf6 {[%emt 0:01:01]} 16. Ne4 {[%emt 0:01:55]} Be7 {[%emt 0:02:20]} 17. Nec5 {[%emt 0:05:18]} Nxc5 {[%emt 0:00:10]} 18. Nxc5 {[%emt 0:00:05]} Bxc5 {[%emt 0:01:58]} 19. Rxc5 {[%emt 0:00:06]} Qd7 {[%emt 0:01:30]} 20. e3 {[%emt 0:01:04]} O-O {[%emt 0:01:11]} 21. Rac1 {[%emt 0:00:03]} Rfc8 {[%emt 0:00:56]} 22. h3 {[%emt 0:00:17]} Qe8 {[%emt 0:02:33]} 23. g4 {[%emt 0:00:32]} Qd7 {[%emt 0:02:04]} 24. Be4 {[%emt 0:04:55]} Qd6 {[%emt 0:08:17]} 25. Qd1 {[%emt 0:06:54]} Ra6 {[%emt 0:04:56]} 26. Qf3 {[%emt 0:01:30]} Re8 {[%emt 0:05:09]} 27. Bd3 {[%emt 0:02:51]} Rb6 {[%emt 0:05:59]} 28. g5 {[%emt 0:01:06]} e5 {[%emt 0:05:10]} (28... hxg5 $11 {hält das Gleichgewicht.} 29. Qh5 e5) 29. Qe4 {[%emt 0:00:07]} g6 {[%emt 0:03:21] [#]} (29... Qg6 $1 $14 30. Qxg6 fxg6) 30. dxe5 {[%emt 0:01:37]} (30. Bc4 $1 $16 Kf8 31. Rxe5 (31. gxh6 exd4 32. Qf3 Re7 $16) 31... Rxe5 32. dxe5) 30... Qe7 {[%emt 0:00:55]} 31. gxh6 {[%emt 0:02:11]} Qg5+ {[%emt 0:03:17]} 32. Kh2 {[%emt 0:00:05]} (32. Qg4 $5 {[%cal Rg4g5]} Qxh6 33. e6 Rxe6 34. Bc4 $16) 32... Qxh6 {[%emt 0:00:37]} 33. Rg1 {[%emt 0:00:12]} Bc8 {[%emt 0:07:36]} 34. Rg3 {[%emt 0:00:15]} b3 {[%emt 0:02:16]} 35. Rxa5 {[%emt 0:00:24]} Be6 {[%emt 0:02:12] [#]} 36. Qd4 $2 {[%emt 0:07:20]} (36. Ra7 $1 $16 {keeps the pressure on.}) 36... Reb8 {[%emt 0:00:38] [#]} 37. Qd6 {[%emt 0:01:00]} (37. Ra7 $1 $16) 37... c5 {[%emt 0:02:26]} 38. Qxc5 {[%emt 0:00:12]} b2 {[%emt 0:00:13]} 39. Bb1 {[%emt 0:00:13]} Qh4 {[%emt 0:01:44]} 40. Qc2 {[%emt 0:00:00]} (40. Ra8 $11 {remains equal.} Bxh3 41. Qd4 Qxd4 42. Rxb8+ Rxb8 43. exd4) 40... Kh7 {[%emt 0:00:00]} 41. Ra7 {[%emt 0:09:03]} R6b7 {[%emt 0:03:44]} 42. Rxb7 {[%emt 0:00:25]} Rxb7 {[%emt 0:00:05]} 43. a5 {[%emt 0:01:40]} Qc4 {[%emt 0:08:40]} 44. Qxc4 {[%emt 0:01:32]} Bxc4 {[%emt 0:00:05]} 45. Rg4 {[%emt 0:00:18]} Ba6 {[%emt 0:01:01]} 46. e6 {[%emt 0:00:22]} f5 {[%emt 0:01:20] [#]} 47. Rd4 $1 {[%emt 0:01:47]} Kg7 {[%emt 0:02:12]} 48. Rd6 {[%emt 0:00:47]} Bb5 {[%emt 0:00:12]} 49. Rd2 {[%emt 0:03:53]} Ra7 {[%emt 0:02:42]} (49... Bc6 $16 {is a better defense.} 50. a6 Ra7 51. Rxb2 Rxa6) 50. Rxb2 {[%emt 0:01:51]} Rxa5 {[%emt 0:00:05]} 51. Kg3 {[%emt 0:02:17]} Kf6 {[%emt 0:00:24]} (51... Bc4 $142 52. Rb7+ Kf6) 52. Ba2 {[%emt 0:00:33]} (52. Ra2 $18 Rxa2 53. Bxa2) 52... Ba6 {[%emt 0:01:11]} 53. Rc2 {[%emt 0:00:57]} Bd3 {[%emt 0:00:38]} 54. Rd2 {[%emt 0:00:30]} Ba6 {[%emt 0:02:13]} 55. Bb3 {[%emt 0:02:12]} Ra3 {[%emt 0:05:08]} 56. Rd6 {[%emt 0:03:08]} Bb5 {[%emt 0:01:26]} 57. Bd1 {[%emt 0:01:00]} Bc4 {[%emt 0:00:50]} 58. e7+ {[%emt 0:00:30]} Kxe7 {[%emt 0:00:04]} 59. Rxg6 {[%emt 0:00:07]} Ra1 {[%emt 0:00:19]} 60. Bf3 {[%emt 0:02:27]} Rg1+ {[%emt 0:02:22]} 61. Bg2 {[%emt 0:00:04]} Kf7 {[%emt 0:00:50]} 62. Rg5 {[%emt 0:01:26]} Kf6 {[%emt 0:01:20]} 63. h4 {[%emt 0:00:15]} Rc1 {[%emt 0:01:28]} 64. Bf3 {[%emt 0:01:52]} Bf7 {[%emt 0:01:26]} 65. Bh5 {[%emt 0:01:24]} Bxh5 {[%emt 0:00:20]} 66. Rxh5 {[%emt 0:00:04]} Rg1+ {[%emt 0:00:09]} 67. Kh2 {[%emt 0:01:44]} Rg4 {[%emt 0:00:17]} 68. f3 {[%emt 0:00:11]} Ra4 {[%emt 0:00:27]} 69. Kg3 {[%emt 0:00:08]} Rb4 {[%emt 0:00:25]} 70. Rh6+ {[%emt 0:00:28]} Kg7 {[%emt 0:00:16]} 71. Rd6 {[%emt 0:00:07]} f4+ {[%emt 0:02:08]} 72. exf4 {[%emt 0:00:04]} Rb5 {[%emt 0:00:44]} 73. Ra6 {[%emt 0:00:11]} Rc5 {[%emt 0:00:11]} 74. Kg4 {[%emt 0:00:11]} Rc1 {[%emt 0:01:00]} 75. f5 {[%emt 0:01:26]} Rg1+ {[%emt 0:00:18]} 76. Kf4 {[%emt 0:00:07]} Rh1 {[%emt 0:00:37]} 77. Rg6+ {[%emt 0:01:23]} Kh7 {[%emt 0:00:16]} 78. Kg5 {[%emt 0:01:19]} Rg1+ {[%emt 0:00:24]} 79. Kf6 {[%emt 0:00:07]} Rf1 {[%emt 0:00:12]} 80. Rg3 {[%emt 0:01:32]} Ra1 {[%emt 0:00:35]} 81. Kg5 {[%emt 0:00:31]} Ra5 {[%emt 0:00:14]} 82. Rg4 {[%emt 0:00:18]} Rb5 {[%emt 0:00:16]} 83. Rc4 {[%emt 0:00:25]} Rb1 {[%emt 0:00:45]} 84. Rc7+ {[%emt 0:00:25]} Kh8 {[%emt 0:00:16]} 85. f6 {[%emt 0:00:44]} Kg8 {[%emt 0:01:06]} 86. h5 {[%emt 0:00:14]} Rg1+ {[%emt 0:00:43]} 87. Kf5 {[%emt 0:00:37]} Rf1 {[%emt 0:02:13]} 88. f7+ {[%emt 0:01:55]} Kf8 {[%emt 0:00:20]} 89. Ke6 {[%emt 0:00:34]} Rxf3 {[%emt 0:01:24]} 90. Rc8+ {[%emt 0:00:09]} Kg7 {[%emt 0:00:03]} 91. f8=Q+ {[%emt 0:01:42]} Rxf8 {[%emt 0:00:06]} 92. h6+ {[%emt 0:00:03]} Kg8 {[%emt 0:00:12]} 93. h7+ {[%emt 0:00:06]} Kg7 {[%emt 0:00:08]} 94. Rxf8 {[%emt 0:00:05]} 1-0

[Event "Satka Autumn 2018"]
[Site "Satka"]
[Date "2018.09.13"]
[Round "3"]
[White "Semenova, Elena"]
[Black "Makarenko, Alexandra"]
[Result "1-0"]
[ECO "C50"]
[WhiteElo "2219"]
[BlackElo "2247"]
[Annotator "NA"]
[PlyCount "61"]
[EventDate "2018.09.11"]
[EventType "swiss"]
[EventCountry "RUS"]
[SourceTitle "playchess.com"]
[Source "ChessBase"]
[SourceQuality "1"]
[TimeControl "40/5400+30:1800+30"]

{[%evp 8,49,18,7,15,10,18,32767,32767,32767,32767,32767,32767,75,95,84,151,146,135,126,144,146,155,168,167,154,139,156,151,170,32767,149,32767,104,135,175,207,345,32767,32767,227,32767,32767,302]} 1. e4 {[%emt 0:00:00]} e5 {[%emt 0:00:00]} 2. Nf3 {[%emt 0:00:00]} Nc6 {[%emt 0:00:00]} 3. Bc4 {[%emt 0:00:00]} Nf6 {[%emt 0:00:00]} 4. d3 {[%emt 0:00:20]} Bc5 {[%emt 0:00:22]} 5. Nc3 {[%emt 0:00:15]} a6 {[%emt 0:02:07] LiveBook: 67 Games} 6. h3 {[%emt 0:01:54]} d6 {[%emt 0:01:43]} 7. O-O {[%emt 0:03:25] C50: Italienische Partie} (7. a4 Be6 8. O-O h6 9. Nd5 Bxd5 10. exd5 Ne7 11. d4 exd4 12. Nxd4 O-O 13. b4 Bxb4 14. Bb2 Re8 {1-0 (33) Mrkonjic,N (2353)-Dabo Peranic,R (2332) Sibenik 2016}) 7... b5 {[%emt 0:08:09]} 8. Bb3 {[%emt 0:01:32]} Bb7 $146 {[%emt 0:01:44]} ({Vorgänger:} 8... Na5 9. Bg5 Nxb3 10. axb3 h6 11. Bh4 g5 12. Bg3 g4 13. hxg4 Bxg4 {0-1 (39) Cabreja Lora,S (1535)-Joaquin Salcedo,C (1753) Santo Domingo 2015}) 9. a4 {[%emt 0:07:39]} Nd4 {[%emt 0:12:33]} 10. Nxd4 {[%emt 0:07:16]} exd4 {[%emt 0:00:06]} 11. Ne2 {[%emt 0:07:49]} d5 {[%emt 0:18:34]} (11... O-O $142) 12. e5 {[%emt 0:03:54]} Nd7 {[%emt 0:00:04]} 13. c3 {[%emt 0:12:47]} dxc3 {[%emt 0:04:36]} 14. bxc3 {[%emt 0:01:00]} O-O {[%emt 0:04:30]} 15. d4 {[%emt 0:00:09]} Be7 {[%emt 0:11:32]} 16. axb5 {[%emt 0:02:01]} axb5 {[%emt 0:01:00]} 17. Rxa8 {[%emt 0:00:08]} Qxa8 {[%emt 0:08:15]} 18. Ng3 {[%emt 0:00:16]} g6 {[%emt 0:14:43]} 19. Bc2 {[%emt 0:09:19]} Re8 {[%emt 0:05:13] [#]} 20. Bh6 {[%emt 0:10:03]} (20. f4 $1 $18 {is the precise move to win.}) 20... b4 {[%emt 0:00:32]} 21. f4 {[%emt 0:08:00]} bxc3 {[%emt 0:00:06]} 22. f5 {[%emt 0:00:15]} Bf8 {[%emt 0:01:01]} 23. Bxf8 {[%emt 0:00:59]} Rxf8 {[%emt 0:03:27]} 24. Qg4 {[%emt 0:10:27]} Qe8 {[%emt 0:00:12]} 25. f6 $18 {[%emt 0:01:08]} Kh8 {[%emt 0:00:50]} 26. Nf5 {[%emt 0:04:36]} Qe6 {[%emt 0:01:07]} 27. Qh4 {[%emt 0:00:59]} Ba6 {[%emt 0:00:32]} 28. Rf4 {[%emt 0:02:49]} Nxe5 {[%emt 0:00:30]} 29. Qh6 {[%emt 0:01:24]} Rg8 30. Qxh7+ {[%emt 0:00:10]} Kxh7 {[%emt 0:00:33]} 31. Rh4# {[%emt 0:00:03]} 1-0

[Event "Satka Autumn 2018"]
[Site "Satka"]
[Date "2018.09.13"]
[Round "3"]
[White "Nosacheva, Mariya"]
[Black "Matsenko, Elena"]
[Result "1-0"]
[ECO "B48"]
[WhiteElo "2073"]
[BlackElo "1854"]
[Annotator "NA"]
[PlyCount "59"]
[EventDate "2018.09.11"]
[EventType "swiss"]
[EventCountry "RUS"]
[SourceTitle "playchess.com"]
[Source "ChessBase"]
[SourceQuality "1"]
[TimeControl "40/5400+30:1800+30"]

{[%evp 8,53,32,35,46,32,56,15,22,18,18,16,45,32767,32767,32767,32767,32767,32767,32767,32767,32767,119,102,229,209,234,233,247,238,225,216,262,250,307,313,332,330,366,292,347,400,356,417,968,1218,1318,1630]} 1. e4 {[%emt 0:00:00]} c5 {[%emt 0:00:00]} 2. Nf3 {[%emt 0:00:00]} Nc6 {[%emt 0:00:00]} 3. d4 {[%emt 0:00:00]} cxd4 {[%emt 0:00:00]} 4. Nxd4 {[%emt 0:00:00]} Qc7 {[%emt 0:00:00]} 5. Nc3 {[%emt 0:00:09]} e6 $1 {[%emt 0:00:00]} 6. Be3 {[%emt 0:00:14]} a6 {[%emt 0:00:00]} 7. Qd2 {[%emt 0:00:08]} Nf6 {[%emt 0:00:18]} 8. O-O-O {[%emt 0:00:24]} Bb4 {[%emt 0:00:22]} 9. f3 {[%emt 0:00:30]} b5 {[%emt 0:01:14] LiveBook: 58 Games B48: Sicilian: Taimanov: 5 Nc3 Qc7 6 Be3 a6 without Be2} (9... O-O 10. g4 b5 11. g5 Nh5 12. Kb1 Rb8 13. Nxc6 dxc6 14. f4 c5 15. Be2 g6 16. Bxh5 gxh5 17. f5 {1-0 (27) Saric,I (2657)-Bosiocic,M (2611) Batumi 2018}) 10. a3 {[%emt 0:14:12]} Be7 {[%emt 0:03:55]} 11. Nb3 {[%emt 0:06:56]} Bb7 {[%emt 0:03:23]} 12. g4 {[%emt 0:02:47]} d6 {[%emt 0:01:18]} 13. g5 {[%emt 0:05:09]} Nd7 {[%emt 0:00:14]} 14. Kb1 $146 {[%emt 0:03:18]} ({Predecessor:} 14. h4 Nce5 15. Qf2 Nc4 16. Bxc4 bxc4 {1-0 (45) Croad,N-Ginzburg,M (2276) Yerevan 2000}) 14... Nde5 {[%emt 0:03:13]} (14... O-O $14) 15. Qf2 {[%emt 0:00:31]} Bd8 {[%emt 0:05:02] [#]} (15... Bc8 $16) 16. Bxb5 $1 {[%emt 0:08:41]} O-O {[%emt 0:09:50]} ({Schlechter ist} 16... axb5 17. Nxb5 Qb8 18. Nxd6+ Kf8 19. Bc5 $16) 17. Be2 {[%emt 0:01:10]} Rc8 {[%emt 0:04:25]} 18. f4 {[%emt 0:04:26]} Nd7 {[%emt 0:00:06]} 19. Rhg1 {[%emt 0:01:34]} Ne7 {[%emt 0:03:38]} (19... Na5 {was necessary.} 20. Nxa5 Qxa5 21. Rxd6 Nc5) 20. Bd3 {[%emt 0:01:14]} f5 {[%emt 0:06:41]} 21. gxf6 {[%emt 0:02:17]} Nxf6 {[%emt 0:00:21]} 22. Nd4 {[%emt 0:02:51]} Qd7 {[%emt 0:01:49]} 23. Qg3 {[%emt 0:00:27]} Rf7 {[%emt 0:02:23]} 24. e5 {[%emt 0:06:50]} Nfd5 {[%emt 0:02:14]} 25. Nxd5 {[%emt 0:03:20]} Nxd5 {[%emt 0:00:32]} (25... Bxd5 $142 26. Qh3 (26. Bxa6 Rb8 $18) 26... g6) 26. Qh3 {[%emt 0:02:01]} g6 {[%emt 0:00:51] [#]} 27. Bxg6 $18 {[%emt 0:04:11]} hxg6 {[%emt 0:00:06]} 28. Rxg6+ {[%emt 0:00:06]} Rg7 {[%emt 0:00:02]} 29. Rdg1 {[%emt 0:00:24]} Nxe3 {[%emt 0:01:15]} 30. Nxe6 {[%emt 0:07:34]} 1-0